lending/lending_fUSD_20250424
["ID","MTS","AMOUNT","RATE_DAILY","PERIOD"]
[358824541,1745476238631,-152.109159,0.0002,2]
[358824543,1745476238641,-151.0,0.0002,2]
[358824545,1745476238651,-151.0,0.0002,2]
[358824547,1745476238661,-151.0,0.0002,2]
[358824549,1745476238671,-151.0,0.0002,2]
[358824551,1745476238680,-250.0,0.0002,2]
[358824553,1745476238690,-250.0,0.0002,2]
[358824555,1745476238700,-250.0,0.0002,2]
[358824557,1745476238710,-250.0,0.0002,2]
[358824560,1745476238720,-250.0,0.0002,2]
[358824562,1745476238729,-250.0,0.0002,2]
[358824564,1745476238739,-250.0,0.0002,2]
[358824566,1745476238749,-250.0,0.0002,2]
[358824568,1745476238763,-250.0,0.0002,2]
[358824570,1745476238774,-250.0,0.0002,2]
[358824572,1745476238784,-304.9,0.0002,2]
[358824574,1745476238794,-151.0,0.0002,2]
[358824577,1745476238804,-151.0,0.0002,2]
[358824579,1745476238813,-151.0,0.0002,2]
[358824581,1745476238823,-151.0,0.0002,2]
[358824583,1745476238833,-151.0,0.0002,2]
[358824585,1745476238843,-151.0,0.0002,2]
[358824587,1745476238853,-151.0,0.0002,2]
[358824589,1745476238863,-151.0,0.0002,2]
[358824591,1745476238873,-151.0,0.0002,2]
[358824593,1745476238883,-151.0,0.0002,2]
[358824595,1745476238892,-151.0,0.0002,2]
[358824597,1745476238902,-151.0,0.0002,2]
[358824599,1745476238912,-151.0,0.0002,2]
[358824601,1745476238921,-151.0,0.0002,2]
[358824603,1745476238931,-151.0,0.0002,2]
[358824605,1745476238940,-151.0,0.0002,2]
[358824607,1745476238950,-158.084154,0.0002,2]
[358824609,1745476238960,-250.0,0.0002,2]
[358824611,1745476238969,-150.0,0.0002,2]
[358824613,1745476238979,-241.0,0.0002,2]
[358824615,1745476238989,-569.02234766,0.0002,2]
[358824616,1745476238999,-151.0,0.0002,2]
[358824617,1745476239008,-151.0,0.0002,2]
[358824618,1745476239018,-197.0,0.0002,2]
[358824619,1745476239028,-189.571,0.0002,2]
[358824620,1745476239038,-151.14,0.0002,2]
[358824621,1745476239047,-163.0,0.0002,2]
[358824622,1745476239058,-165.569,0.0002,2]
[358824623,1745476239068,-150.479,0.0002,2]
[358824624,1745476239078,-154.584,0.0002,2]
[358824625,1745476239087,-150.0,0.0002,2]
[358824626,1745476239097,-152.349,0.0002,2]
[358824627,1745476239107,-253.434,0.0002,2]
[358824628,1745476239120,-241.931,0.0002,2]
[358824630,1745476239129,-182.381,0.0002,2]
[358824632,1745476239139,-151.0,0.0002,2]
[358824634,1745476239148,-154.057701,0.0002,2]
[358824636,1745476239160,-172.624,0.0002,2]
[358824638,1745476239169,-258.736,0.0002,2]
[358824640,1745476239179,-158.070686,0.0002,2]
[358824642,1745476239190,-158.070686,0.0002,2]
[358824644,1745476239199,-158.070686,0.0002,2]
[358824646,1745476239209,-158.070686,0.0002,2]
[358824648,1745476239219,-156.74,0.0002,2]
[358824650,1745476239228,-1431.934922,0.0002,2]
[358824653,1745476239238,-1795.024953,0.0002,2]
[358824655,1745476239248,-150.0,0.0002,2]
[358824657,1745476239257,-537.6675634,0.0002,2]
[358824659,1745476239268,-548.0,0.0002,2]
[358824661,1745476239278,-578.0,0.0002,2]
[358824663,1745476239288,-910.0,0.0002,2]
[358824666,1745476239297,-2060.0,0.0002,2]
[358824669,1745476239322,-1445.0,0.0002,2]
[358824671,1745476239333,-186.317749,0.0002,2]
[358824673,1745476239343,-271083.1850867,0.0002,2]
[358824766,1745476240211,-2494318.525,0.0002,2]
[358825195,1745476244460,-153.8521996,0.00019799,2]
[358825197,1745476244471,-618.81,0.00019883,2]
[358825199,1745476244480,-152.4735976,0.00019888,2]
[358825253,1745476270169,159.10388,0.00019973,14]
[358825254,1745476270466,159.10388,0.00019999,5]
[358825255,1745476315626,163.184087,0.00019973,14]
[358825256,1745476316967,163.184087,0.00019999,5]
[358825313,1745476554085,1476.51,0.00017135,2]
[358825386,1745476817857,-161.52858115,0.00018998,2]
[358825402,1745476870672,164.09,0.0001895,2]
[358825493,1745477167204,-167.96899125,0.00018998,2]
[358825514,1745477232910,167.968992,0.00018903,2]
[358825517,1745477277198,250.0,0.00017,2]
[358825518,1745477281977,-299.29609538,0.00018998,2]
[358825519,1745477352265,248.8,0.00018889,3]
[358825527,1745477432351,-371.20633222,0.00018998,2]
[358825528,1745477432361,-150.0,0.00018999,2]
[358825529,1745477432372,-300.0,0.00019,2]
[358825530,1745477432382,-250.0,0.00019022,2]
[358825531,1745477432392,-150.0,0.0001903,2]
[358825532,1745477432403,-253.45,0.00019095,2]
[358825533,1745477432414,-340.70859508,0.0001912,2]
[358825568,1745477438441,-5223.87140492,0.0001912,2]
[358825569,1745477438451,-242.0,0.0001918,2]
[358825570,1745477438461,-150.0,0.0001937,2]
[358825571,1745477438472,-1200.0,0.00019397,2]
[358825572,1745477438482,-999.99,0.00019397,2]
[358825573,1745477438492,-501.0,0.00019398,2]
[358825574,1745477438505,-1476.51,0.00019399,2]
[358825575,1745477438517,-166.68,0.00019587,2]
[358825576,1745477438527,-454.68,0.000196,2]
[358825578,1745477438539,-454.83,0.000196,2]
[358825580,1745477438548,-799.28,0.000196,2]
[358825582,1745477438558,-799.28,0.000196,2]
[358825584,1745477438567,-454.83,0.000196,2]
[358825586,1745477438577,-1148.47,0.000196,2]
[358825588,1745477438587,-454.83,0.000196,2]
[358825589,1745477438597,-799.28,0.000196,2]
[358825591,1745477438607,-1150.78,0.000196,2]
[358825594,1745477438617,-798.16,0.000196,2]
[358825596,1745477438626,-454.23,0.000196,2]
[358825598,1745477438640,-1150.78,0.000196,2]
[358825600,1745477438650,-664.5333,0.00019786,2]
[358825602,1745477438661,-5105.9446,0.00019786,2]
[358825604,1745477438671,-856.6,0.00019786,2]
[358825606,1745477438681,-153.8521996,0.00019799,2]
[358825608,1745477438690,-1150.78,0.000198,2]
[358825610,1745477438700,-1150.78,0.000198,2]
[358825613,1745477438710,-1150.78,0.000198,2]
[358825616,1745477438719,-1150.78,0.000198,2]
[358825618,1745477438729,-1150.78,0.000198,2]
[358825620,1745477438739,-1150.78,0.000198,2]
[358825622,1745477438749,-1150.78,0.000198,2]
[358825624,1745477438758,-1150.78,0.000198,2]
[358825626,1745477438768,-1176.75,0.000198,2]
[358825628,1745477438778,-1151.08,0.000198,2]
[358825630,1745477438787,-1150.78,0.000198,2]
[358825632,1745477438796,-1150.78,0.000198,2]
[358825634,1745477438806,-20.99555116,0.00019888,2]
[358825636,1745477438816,-341.86949145,0.00019888,2]
[358825638,1745477438826,-341.86949141,0.00019889,2]
[358825640,1745477438835,-341.86949141,0.00019891,2]
[358825642,1745477438845,-341.86949141,0.00019892,2]
[358825644,1745477438855,-341.86949141,0.00019893,2]
[358825646,1745477438864,-341.86949141,0.00019895,2]
[358825648,1745477438873,-341.86949141,0.00019896,2]
[358825650,1745477438883,-341.86949141,0.00019897,2]
[358825652,1745477438893,-2500.0,0.00019899,2]
[358825654,1745477438902,-166.45490482,0.000199,2]
[358825656,1745477438911,-217.03998966,0.000199,2]
[358825658,1745477438921,-599.81520136,0.000199,2]
[358825660,1745477438932,-150.0,0.00019961,2]
[358825662,1745477438941,-205.21480445,0.00019973,2]
[358825664,1745477438950,-159.89753395,0.00019973,2]
[358825666,1745477438960,-160.40569481,0.00019973,2]
[358825668,1745477438969,-506.95241111,0.00019973,2]
[358825670,1745477438979,-500.0,0.00019973,2]
[358825672,1745477438988,-153.32393586,0.00019973,2]
[358825674,1745477438998,-500.0,0.00019973,2]
[358825676,1745477439007,-501.04190365,0.00019973,2]
[358825677,1745477439017,-500.0,0.00019973,2]
[358825679,1745477439027,-500.0,0.00019973,2]
[358825681,1745477439036,-207.4,0.00019974,2]
[358825683,1745477439046,-231.39637961,0.00019985,2]
[358825685,1745477439056,-227.78962254,0.00019985,2]
[358825687,1745477439065,-175.72793125,0.00019985,2]
[358825689,1745477439074,-500.0,0.00019985,2]
[358825691,1745477439083,-500.0,0.00019985,2]
[358825693,1745477439092,-500.0,0.00019985,2]
[358825695,1745477439102,-500.0,0.00019985,2]
[358825697,1745477439112,-228.60883552,0.00019985,2]
[358825699,1745477439122,-253.5275712,0.00019985,2]
[358825701,1745477439131,-628.2803022,0.00019985,2]
[358825703,1745477439141,-500.0,0.00019985,2]
[358825705,1745477439151,-500.0,0.00019985,2]
[358825707,1745477439161,-500.0,0.00019985,2]
[358825709,1745477439171,-500.0,0.00019985,2]
[358825711,1745477439180,-1535.299,0.00019986,2]
[358825713,1745477439190,-3664.6013812,0.00019986,2]
[358825715,1745477439199,-79536.7045846,0.00019986,2]
[358825717,1745477439208,-7752.0396419,0.00019986,2]
[358825719,1745477439218,-151.0,0.00019988,2]
[358825721,1745477439227,-668.65185757,0.00019988,2]
[358825723,1745477439236,-151.0,0.00019988,2]
[358825725,1745477439247,-6659.18,0.0001999,2]
[358825727,1745477439256,-6659.18,0.0001999,2]
[358825729,1745477439265,-1217.4295604,0.0001999,2]
[358825731,1745477439274,-1217.4295604,0.0001999,2]
[358825733,1745477439284,-1217.4295604,0.0001999,2]
[358825735,1745477439293,-300.0,0.00019999,2]
[358825737,1745477439303,-312.66067017,0.00019999,2]
[358825739,1745477439312,-500.0,0.00019999,2]
[358825741,1745477439322,-500.0,0.00019999,2]
[358825743,1745477439332,-670.87075064,0.00019999,2]
[358825745,1745477439342,-300.0,0.00019999,2]
[358825747,1745477439351,-500.0,0.00019999,2]
[358825749,1745477439361,-500.0,0.00019999,2]
[358825751,1745477439374,-300.0,0.00019999,2]
[358825753,1745477439384,-500.0,0.00019999,2]
[358825755,1745477439393,-300.0,0.00019999,2]
[358825757,1745477439402,-500.0,0.00019999,2]
[358825759,1745477439412,-500.0,0.00019999,2]
[358825761,1745477439422,-500.0,0.00019999,2]
[358825763,1745477439432,-500.0,0.00019999,2]
[358825765,1745477439441,-500.0,0.00019999,2]
[358825767,1745477439451,-500.0,0.00019999,2]
[358825769,1745477439460,-500.0,0.00019999,2]
[358825771,1745477439470,-500.0,0.00019999,2]
[358825773,1745477439480,-1644.09672093,0.00019999,2]
[358825775,1745477439489,-240.12464818,0.00019999,2]
[358825777,1745477439501,-55667.37004529,0.00019999,2]
[358825779,1745477439511,-1014.0,0.00019999,2]
[358825781,1745477439520,-1158790.5100231,0.0002,2]
[358825783,1745477439530,-213.31021645,0.0002,2]
[358825785,1745477439540,-960086.25704135,0.0002,2]
[358825852,1745477440181,-2494318.525,0.0002,2]
[358826291,1745477446217,-1150.78,0.000198,2]
[358826292,1745477446227,-341.86949141,0.00019899,2]
[358826293,1745477446238,-8364.88805413,0.000199,2]
[358826294,1745477446248,-341.86949141,0.000199,2]
[358826295,1745477446258,-556.92,0.00019989,2]
[358826296,1745477446267,-556.92,0.00019989,2]
[358826297,1745477446278,-2452.79568454,0.0002,2]
[358826298,1745477446295,-23700.42709423,0.0002,2]
[358826299,1745477446349,-658.28668352,0.0002,2]
[358826300,1745477446362,-570.46532051,0.0002,2]
[358826301,1745477446377,-551.36941762,0.0002,2]
[358826302,1745477446388,-2237.76331141,0.0002,2]
[358826303,1745477446635,-258.32500331,0.0001999,2]
[358826415,1745477560413,200.0,0.00037808,60]
[358826416,1745477608223,1336.94,0.00017551,2]
[358826417,1745477827941,271.290066,7.945e-05,2]
[358826418,1745477850267,1553.0,0.000358,120]
[358826419,1745478028160,1423.979728,0.00037808,60]
[358826420,1745478033646,1423.979728,0.0002,4]
[358826421,1745478268259,-319.65129504,0.00019004,2]
[358826422,1745478359611,-221.22342554,0.00019004,2]
[358826423,1745478388459,527.88639757,0.0003,120]
[358826424,1745478489613,402.859,0.00037,60]
[358826436,1745478607651,1270.09,0.00016999,2]
[358826442,1745478631618,-250.0,0.00019052,2]
[358826443,1745478631628,-250.0,0.00019113,2]
[358826444,1745478631639,-584.12496263,0.00019145,2]
[358826453,1745478637424,-204.64414504,0.00019145,2]
[358826454,1745478637435,-1000.0,0.00019148,2]
[358826455,1745478637444,-148.65408063,0.00019158,2]
[358826457,1745478637457,-13.47591937,0.00019158,2]
[358826458,1745478637466,-253.45,0.00019256,2]
[358826459,1745478637480,-1270.09,0.00019263,2]
[358826460,1745478637491,-788.76910767,0.00019273,2]
[358826461,1745478637500,-483.95752015,0.00019591,2]
[358826462,1745478637511,-788.76910767,0.00019664,2]
[358826463,1745478637521,-166.68,0.00019741,2]
[358826464,1745478637531,-788.76910767,0.00019768,2]
[358826465,1745478637541,-153.8521996,0.00019799,2]
[358826466,1745478637553,-1150.78,0.000198,2]
[358826467,1745478637564,-1150.78,0.000198,2]
[358826468,1745478637575,-1200.0,0.00019835,2]
[358826469,1745478637584,-500.0,0.00019836,2]
[358826470,1745478637595,-500.0,0.00019836,2]
[358826471,1745478637605,-300.0,0.00019885,2]
[358826472,1745478637615,-273.49559315,0.00019886,2]
[358826473,1745478637625,-2500.0,0.00019886,2]
[358826474,1745478637634,-273.49559313,0.00019888,2]
[358826475,1745478637644,-273.49559313,0.00019889,2]
[358826476,1745478637654,-273.49559313,0.00019891,2]
[358826477,1745478637663,-273.49559313,0.00019892,2]
[358826478,1745478637673,-273.49559313,0.00019894,2]
[358826479,1745478637682,-273.49559313,0.00019895,2]
[358826480,1745478637692,-273.49559313,0.00019897,2]
[358826481,1745478637706,-273.49559313,0.00019898,2]
[358826482,1745478637715,-273.49559313,0.000199,2]
[358826483,1745478637724,-1150.78,0.000199,2]
[358826484,1745478637734,-1150.78,0.000199,2]
[358826485,1745478637744,-770.54520345,0.000199,2]
[358826486,1745478637754,-1150.78,0.000199,2]
[358826487,1745478637764,-599.81520136,0.000199,2]
[358826488,1745478637774,-1133.0,0.000199,2]
[358826489,1745478637784,-871.0,0.000199,2]
[358826490,1745478637794,-1517.564,0.000199,2]
[358826492,1745478637803,-3986.0,0.000199,2]
[358826494,1745478637813,-5790.0,0.000199,2]
[358826496,1745478637822,-198.901,0.000199,2]
[358826498,1745478637832,-895.2,0.000199,2]
[358826499,1745478637841,-160.40569481,0.00019973,2]
[358826500,1745478637851,-205.21480445,0.00019973,2]
[358826501,1745478637861,-500.0,0.00019973,2]
[358826502,1745478637870,-501.04190365,0.00019973,2]
[358826503,1745478637880,-500.0,0.00019973,2]
[358826504,1745478637889,-159.89753395,0.00019973,2]
[358826505,1745478637899,-500.0,0.00019973,2]
[358826506,1745478637909,-153.32393586,0.00019973,2]
[358826508,1745478637918,-500.0,0.00019973,2]
[358826510,1745478637928,-207.4,0.00019974,2]
[358826512,1745478637937,-231.39637961,0.00019985,2]
[358826514,1745478637947,-228.60883552,0.00019985,2]
[358826516,1745478637956,-175.72793125,0.00019985,2]
[358826518,1745478637966,-227.78962254,0.00019985,2]
[358826521,1745478637976,-253.5275712,0.00019985,2]
[358826523,1745478637985,-500.0,0.00019985,2]
[358826525,1745478637995,-500.0,0.00019985,2]
[358826527,1745478638004,-500.0,0.00019985,2]
[358826529,1745478638014,-500.0,0.00019985,2]
[358826531,1745478638023,-287.4154889,0.00019985,2]
[358826533,1745478638036,-212.5845111,0.00019985,2]
[358826535,1745478638046,-500.0,0.00019985,2]
[358826537,1745478638055,-500.0,0.00019985,2]
[358826539,1745478638065,-500.0,0.00019985,2]
[358826541,1745478638074,-1535.299,0.00019986,2]
[358826543,1745478638083,-5107.5782399,0.00019986,2]
[358826545,1745478638095,-36008.590824,0.00019986,2]
[358826548,1745478638117,-694.63121805,0.00019986,2]
[358826550,1745478638128,-5547.13631415,0.00019986,2]
[358826552,1745478638138,-1337.86452149,0.00019986,2]
[358826555,1745478638150,-1419.50043972,0.00019986,2]
[358826557,1745478638162,-1248.76154241,0.00019986,2]
[358826559,1745478638178,-6732.81013288,0.00019986,2]
[358826561,1745478638188,-5076.5893685,0.00019986,2]
[358826563,1745478638197,-62824.630866,0.00019986,2]
[358826566,1745478638207,-450.94896121,0.00019986,2]
[358826568,1745478638217,-151.0,0.00019988,2]
[358826569,1745478638226,-668.65185757,0.00019988,2]
[358826571,1745478638235,-151.0,0.00019988,2]
[358826573,1745478638245,-419.71,0.00019989,2]
[358826575,1745478638254,-419.71,0.00019989,2]
[358826577,1745478638263,-419.71,0.00019989,2]
[358826579,1745478638272,-6659.18,0.0001999,2]
[358826581,1745478638282,-6659.18,0.0001999,2]
[358826583,1745478638291,-1217.4295604,0.0001999,2]
[358826585,1745478638300,-419.71,0.0001999,2]
[358826587,1745478638309,-419.71,0.0001999,2]
[358826589,1745478638319,-419.71,0.0001999,2]
[358826591,1745478638329,-419.71,0.0001999,2]
[358826594,1745478638343,-419.71,0.0001999,2]
[358826596,1745478638353,-1217.4295604,0.0001999,2]
[358826598,1745478638362,-1217.4295604,0.0001999,2]
[358826600,1745478638372,-300.0,0.00019999,2]
[358826601,1745478638381,-300.0,0.00019999,2]
[358826602,1745478638391,-300.0,0.00019999,2]
[358826603,1745478638401,-500.0,0.00019999,2]
[358826604,1745478638410,-500.0,0.00019999,2]
[358826605,1745478638420,-500.0,0.00019999,2]
[358826606,1745478638430,-500.0,0.00019999,2]
[358826607,1745478638440,-500.0,0.00019999,2]
[358826608,1745478638451,-500.0,0.00019999,2]
[358826609,1745478638461,-500.0,0.00019999,2]
[358826610,1745478638471,-500.0,0.00019999,2]
[358826611,1745478638490,-500.0,0.00019999,2]
[358826612,1745478638500,-500.0,0.00019999,2]
[358826613,1745478638510,-500.0,0.00019999,2]
[358826614,1745478638521,-500.0,0.00019999,2]
[358826615,1745478638531,-300.0,0.00019999,2]
[358826616,1745478638541,-670.87075064,0.00019999,2]
[358826618,1745478638552,-240.12464818,0.00019999,2]
[358826620,1745478638563,-55667.37004628,0.00019999,2]
[358826622,1745478638573,-1107.0,0.00019999,2]
[358826624,1745478638582,-1158790.5100231,0.0002,2]
[358826626,1745478638593,-1006573.76843149,0.0002,2]
[358826628,1745478638605,-2494318.525,0.0002,2]
[358826630,1745478638616,-9545.86031978,0.0002,2]
[358826634,1745478638643,-419.71,0.0001999,2]
[358826636,1745478638653,-9653.00368094,0.0002,2]
[358826667,1745478639906,-257.099,0.000199,2]
[358826668,1745478639917,-3482.52,0.00019989,2]
[358826669,1745478639927,-289.569855,0.0001999,2]
[358826687,1745478643361,-130.140145,0.0001999,2]
[358826688,1745478643371,-750.2398838,0.0001999,2]
[358826691,1745478646573,-922.0,0.000199,2]
[358826692,1745478646602,-228.78,0.000199,2]
[358826693,1745478646612,-338.48409066,0.00019985,2]
[358826694,1745478646621,-29.25127213,0.0001999,2]
[358826695,1745478646633,-541.6750081,0.0001999,2]
[358826708,1745478725689,1125.970198,0.00037808,60]
[358826709,1745478728624,1125.970198,0.0002,4]
[358826710,1745478730422,1125.970198,0.00019973,14]
[358826711,1745478730712,1125.970198,0.00019973,14]
[358826712,1745478731022,1125.970198,0.00019973,14]
[358826713,1745478731718,1125.970198,0.00019973,14]
[358826714,1745478731839,1125.970198,0.00019973,14]
[358826715,1745478733166,1125.970198,0.00019899,7]
[358826718,1745479113268,250.0,0.00017,2]
[358826719,1745479115299,-152.0,0.00019,2]
[358826720,1745479196029,813.91034449,0.00018879,2]
[358826721,1745479196062,813.91034449,0.00018951,2]
[358826722,1745479198186,-148.0,0.00019,2]
[358826723,1745479246668,-188.42219273,0.00018978,2]
[358826724,1745479282657,1500.0,0.00018974,2]
[358826725,1745479283338,-22.41780727,0.00018978,2]
[358826728,1745479423238,163.628882,0.00037808,60]
[358826729,1745479424960,163.628882,0.00019973,14]
[358826730,1745479426515,163.628882,0.0002,4]
[358826731,1745479430659,163.628882,0.00019899,7]
[358826732,1745479549821,218.32,0.00018886,2]
[358826735,1745479692830,-288.8479,0.00018999,2]
[358826736,1745479696303,-288.8479,0.00018999,2]
[358826769,1745479824655,162.13,0.0001887,2]
[358826776,1745479831782,-250.0,0.00019072,2]
[358826777,1745479831792,-250.0,0.00019143,2]
[358826778,1745479831802,-1000.0,0.00019146,2]
[358826779,1745479831812,-150.0,0.00019154,2]
[358826780,1745479831821,-300.0,0.00019456,2]
[358826781,1745479831831,-500.0,0.00019671,2]
[358826782,1745479831840,-152.28,0.000197,2]
[358826783,1745479831850,-151.19,0.000197,2]
[358826784,1745479831862,-1150.78,0.000197,2]
[358826785,1745479831872,-166.68,0.00019703,2]
[358826786,1745479831882,-1200.0,0.00019798,2]
[358826787,1745479831891,-153.8521996,0.00019799,2]
[358826788,1745479831901,-939.53229679,0.000198,2]
[358826789,1745479831914,-211.24770321,0.000198,2]
[358826790,1745479831923,-1150.78,0.000198,2]
[358826791,1745479831933,-150.0,0.000198,2]
[358826792,1745479831943,-150.0,0.000198,2]
[358826793,1745479831954,-427.93861119,0.000198,2]
[358826794,1745479831965,-1170.06138881,0.000198,2]
[358826795,1745479831975,-1150.78,0.000198,2]
[358826796,1745479831985,-2150.93379435,0.000198,2]
[358826797,1745479831994,-28027.80089612,0.000198,2]
[358826798,1745479832004,-2150.9337943,0.00019811,2]
[358826799,1745479832013,-2150.9337943,0.00019822,2]
[358826800,1745479832022,-150.0,0.00019824,2]
[358826801,1745479832032,-2150.9337943,0.00019833,2]
[358826802,1745479832041,-835.29344676,0.0001984,2]
[358826803,1745479832051,-2150.9337943,0.00019844,2]
[358826804,1745479832061,-2150.9337943,0.00019856,2]
[358826805,1745479832070,-2150.9337943,0.00019867,2]
[358826806,1745479832080,-500.0,0.00019873,2]
[358826807,1745479832090,-506.95241111,0.00019873,2]
[358826808,1745479832099,-549.96560119,0.00019873,2]
[358826809,1745479832109,-500.0,0.00019873,2]
[358826811,1745479832118,-207.4,0.00019874,2]
[358826813,1745479832128,-29400.0,0.00019886,2]
[358826815,1745479832137,-5050.12465064,0.00019888,2]
[358826817,1745479832147,-5050.12465064,0.00019889,2]
[358826819,1745479832156,-5050.12465064,0.00019891,2]
[358826821,1745479832166,-5050.12465064,0.00019892,2]
[358826823,1745479832175,-5050.12465064,0.00019893,2]
[358826825,1745479832185,-5050.12465064,0.00019895,2]
[358826827,1745479832195,-5050.12465064,0.00019896,2]
[358826829,1745479832204,-5050.12465064,0.00019897,2]
[358826831,1745479832214,-5050.12465064,0.00019899,2]
[358826833,1745479832223,-161.97746573,0.00019899,2]
[358826835,1745479832236,-290.22209248,0.00019899,2]
[358826837,1745479832247,-500.0,0.00019899,2]
[358826839,1745479832257,-160.02618486,0.00019899,2]
[358826841,1745479832267,-159.45273578,0.00019899,2]
[358826843,1745479832277,-326.735075,0.00019899,2]
[358826845,1745479832287,-500.0,0.00019899,2]
[358826847,1745479832297,-500.0,0.00019899,2]
[358826849,1745479832306,-500.0,0.00019899,2]
[358826851,1745479832315,-500.0,0.00019899,2]
[358826853,1745479832325,-500.0,0.00019899,2]
[358826855,1745479832335,-1839.3195,0.000199,2]
[358826857,1745479832344,-166.45490482,0.000199,2]
[358826859,1745479832354,-1150.78,0.000199,2]
[358826861,1745479832363,-467.61,0.000199,2]
[358826863,1745479832373,-217.03998966,0.000199,2]
[358826865,1745479832383,-82599.0943079,0.000199,2]
[358826866,1745479832392,-1150.78,0.000199,2]
[358826867,1745479832401,-319.33,0.000199,2]
[358826868,1745479832411,-417.31,0.000199,2]
[358826869,1745479832421,-150.0,0.000199,2]
[358826870,1745479832430,-150.0,0.000199,2]
[358826871,1745479832439,-1150.78,0.000199,2]
[358826872,1745479832449,-300.0,0.000199,2]
[358826873,1745479832458,-1150.78,0.000199,2]
[358826874,1745479832468,-150.0,0.000199,2]
[358826875,1745479832479,-150.0,0.000199,2]
[358826876,1745479832488,-666.374396,0.000199,2]
[358826877,1745479832500,-1048.05722554,0.000199,2]
[358826878,1745479832510,-5050.12465064,0.000199,2]
[358826879,1745479832519,-500.0,0.00019945,2]
[358826880,1745479832529,-500.0,0.00019973,2]
[358826881,1745479832538,-503.70433172,0.00019973,2]
[358826882,1745479832548,-645.22053293,0.00019973,2]
[358826883,1745479832557,-500.0,0.00019973,2]
[358826884,1745479832566,-500.0,0.00019973,2]
[358826885,1745479832575,-150.96682297,0.00019973,2]
[358826886,1745479832584,-500.0,0.00019973,2]
[358826888,1745479832594,-500.0,0.00019973,2]
[358826889,1745479832603,-6659.18,0.00019976,2]
[358826891,1745479832613,-1228.239,0.00019986,2]
[358826893,1745479832622,-7605.8100346,0.00019986,2]
[358826895,1745479832632,-15427.9889677,0.00019986,2]
[358826897,1745479832642,-77764.22246029,0.00019986,2]
[358826900,1745479832654,-417.1601092,0.00019986,2]
[358826902,1745479832665,-9256.15,0.00019986,2]
[358826904,1745479832677,-1502.46852206,0.00019986,2]
[358826907,1745479832698,-563.70807734,0.00019986,2]
[358826929,1745479837715,-435.10499972,0.00019878,2]
[358826930,1745479837745,-1715.82879458,0.00019878,2]
[358826931,1745479837755,-16.97110542,0.0001989,2]
[358826932,1745479837766,-318.79889458,0.0001989,2]
[358826933,1745479837775,-335.77,0.0001989,2]
[358826934,1745479837785,-335.77,0.00019966,2]
[358826935,1745479837794,-36.35104542,0.00019976,2]
[358826936,1745479837806,-299.41895458,0.00019976,2]
[358826937,1745479837815,-335.77,0.00019976,2]
[358826938,1745479837824,-335.77,0.00019976,2]
[358826939,1745479837833,-335.77,0.00019976,2]
[358826940,1745479837843,-335.77,0.00019976,2]
[358826941,1745479837851,-125.90104541,0.00019976,2]
[358826942,1745479837865,-209.86895459,0.00019976,2]
[358826943,1745479837875,-335.77,0.00019976,2]
[358826944,1745479837884,-195.31104541,0.00019986,2]
[358826945,1745479837914,-1080.68,0.00019976,2]
[358826946,1745479837923,-4718.38923783,0.00019986,2]
[358826947,1745479837934,-678.96159444,0.00019986,2]